[Event "World Team-ch Women 2019"]
[Site "Astana"]
[Date "2019.03.08"]
[Round "4.20"]
[White "Havanecz, Bianka"]
[Black "Ehab, Tasneem"]
[Result "1/2-1/2"]
[ECO "E97"]
[WhiteElo "2270"]
[BlackElo "1841"]
[Annotator "NA"]
[PlyCount "128"]
[EventDate "2019.02.05"]
[EventType "team-tourn"]
[EventCountry "KAZ"]
[SourceTitle "playchess.com"]
[Source "ChessBase"]
[SourceQuality "1"]
[WhiteTeam "Hungary"]
[BlackTeam "Egypt"]
[WhiteTeamCountry "HUN"]
[BlackTeamCountry "EGY"]
[TimeControl "40/5400+30:1800+30"]

1. d4 {[%emt 0:00:00]} Nf6 {[%emt 0:00:00]} 2. c4 {[%emt 0:00:00]} g6 {[%emt 0:00:00]} 3. Nf3 {[%emt 0:00:00]} Bg7 {[%emt 0:00:00]} 4. Nc3 {[%emt 0:00:00]} O-O {[%emt 0:00:00]} 5. e4 {[%emt 0:00:00]} d6 {[%emt 0:00:00]} 6. Be2 {[%emt 0:00:00]} e5 {[%emt 0:01:15]} 7. O-O {[%emt 0:00:03]} Nc6 {[%emt 0:00:07]} 8. dxe5 {[%emt 0:00:45]} dxe5 {[%emt 0:00:52]} 9. Bg5 {[%emt 0:00:06]} h6 {[%emt 0:02:20]} 10. Qxd8 {[%emt 0:01:52]} Rxd8 {[%emt 0:02:48]} 11. Bxf6 {[%emt 0:00:06] E97: King's Indian: Classical Main Line (6...e5 7 0-0 Nc6): 8 Be3 and 8 d5 Ne7, not 9 Ne1} Bxf6 {[%emt 0:00:38]} 12. Nd5 {[%emt 0:00:04]} Bg7 {[%emt 0:00:30]} (12... Kg7 13. Nxc7 Rb8 14. h3 Nd4 15. Nxd4 Rxd4 16. Ne8+ {1-0 (16) Swapnil,S (2533)-Zhou,Y (2449) chess.com INT 2018}) 13. Nxc7 {[%emt 0:00:09]} Rb8 {[%emt 0:00:34]} 14. Rad1 {[%emt 0:03:41]} Bg4 {[%emt 0:01:03]} 15. Rxd8+ $146 {[%emt 0:01:57]} ({Predecessor:} 15. Nd5 Bxf3 16. Bxf3 f5 17. b4 Kf7 18. Rfe1 Rd7 19. exf5 gxf5 {1-0 (38) Kurz,R-Rocholz,G Germany 1998}) 15... Rxd8 {[%emt 0:00:11]} 16. Nd5 {[%emt 0:00:19]} Bxf3 {[%emt 0:03:17]} 17. Bxf3 {[%emt 0:00:17]} Nd4 {[%emt 0:00:35]} 18. Rc1 {[%emt 0:02:37]} Kf8 {[%emt 0:05:54]} 19. Kf1 {[%emt 0:00:29]} h5 {[%emt 0:02:35]} 20. Bd1 {[%emt 0:07:43]} Rc8 {[%emt 0:02:48]} 21. Ke1 {[%emt 0:02:07]} Ke8 {[%emt 0:02:49]} 22. b4 {[%emt 0:01:50]} Kd8 {[%emt 0:03:51]} 23. Rc3 {[%emt 0:05:48]} Bf8 {[%emt 0:02:58]} 24. Kd2 {[%emt 0:04:57]} a5 {[%emt 0:07:21]} 25. bxa5 {[%emt 0:04:52]} Ra8 {[%emt 0:00:53]} 26. Bb3 {[%emt 0:03:09]} Rxa5 {[%emt 0:00:51]} 27. Rd3 {[%emt 0:04:59]} Bc5 {[%emt 0:07:55]} 28. f4 {[%emt 0:00:59]} exf4 {[%emt 0:02:38]} 29. Nxf4 {[%emt 0:01:04]} Ke7 {[%emt 0:01:12]} 30. Kc3 {[%emt 0:01:19]} Nc6 {[%emt 0:06:45]} 31. Nd5+ {[%emt 0:02:00]} Ke6 {[%emt 0:02:46]} 32. Rf3 {[%emt 0:01:10]} Bd4+ {[%emt 0:07:20]} 33. Kd2 {[%emt 0:00:05]} Rc5 {[%emt 0:04:37]} 34. Nf4+ {[%emt 0:03:04]} Ke7 {[%emt 0:00:46]} 35. Rf1 {[%emt 0:03:53]} Ne5 {[%emt 0:04:23]} 36. Rb1 {[%emt 0:01:06]} Ra5 {[%emt 0:06:42]} 37. a4 {[%emt 0:01:27]} Kd6 {[%emt 0:01:14]} 38. Ne2 {[%emt 0:02:34]} Bc5 {[%emt 0:02:31]} 39. Kc3 {[%emt 0:00:09]} Ng4 {[%emt 0:03:12]} 40. Bc2 {[%emt 0:00:00]} b6 {[%emt 0:00:00]} 41. Nd4 {[%emt 0:07:33]} Ra6 {[%emt 0:13:54]} 42. Rf1 {[%emt 0:02:58]} Ne3 {[%emt 0:04:43]} 43. Nb5+ {[%emt 0:17:28]} Ke7 {[%emt 0:00:26]} 44. Ra1 {[%emt 0:03:41]} Nxg2 {[%emt 0:02:21]} 45. e5 {[%emt 0:00:36]} Ne3 {[%emt 0:01:55]} 46. Be4 {[%emt 0:01:53]} Ng4 {[%emt 0:02:44]} 47. e6 {[%emt 0:01:37]} fxe6 {[%emt 0:01:13]} 48. Bxg6 {[%emt 0:00:18]} Ra8 {[%emt 0:02:30]} 49. Bxh5 {[%emt 0:00:36]} Nf6 {[%emt 0:00:18]} 50. Bg6 {[%emt 0:01:34]} Rh8 {[%emt 0:00:32]} 51. Re1 {[%emt 0:03:58]} Rh3+ {[%emt 0:01:48]} 52. Bd3 {[%emt 0:00:06]} Ng4 {[%emt 0:06:05]} 53. Kc2 {[%emt 0:11:16]} Rxh2+ {[%emt 0:00:41]} 54. Re2 {[%emt 0:01:20]} Rxe2+ {[%emt 0:00:47]} 55. Bxe2 {[%emt 0:00:01]} Nf6 {[%emt 0:00:44]} 56. Bf3 {[%emt 0:00:25]} e5 {[%emt 0:00:23]} 57. Kd3 {[%emt 0:02:53]} Ke6 {[%emt 0:00:48]} 58. Nc3 {[%emt 0:03:51]} Kd6 {[%emt 0:02:24]} 59. Nb5+ {[%emt 0:03:47]} Ke6 {[%emt 0:00:13]} 60. Bg2 {[%emt 0:02:25]} Kf5 {[%emt 0:01:58]} 61. Nc3 {[%emt 0:00:12]} Ke6 {[%emt 0:00:31]} 62. Bd5+ {[%emt 0:02:33]} Kd6 {[%emt 0:01:17]} 63. Nb5+ {[%emt 0:00:52]} Ke7 {[%emt 0:00:33]} 64. Nc3 {[%emt 0:04:15]} e4+ $11 1/2-1/2

[Event "World Team-ch Women 2019"]
[Site "Astana"]
[Date "2019.03.09"]
[Round "5.3"]
[White "Lei, Tingjie"]
[Black "Gunina, Valentina"]
[Result "1-0"]
[ECO "A40"]
[WhiteElo "2477"]
[BlackElo "2515"]
[Annotator "RC"]
[PlyCount "73"]
[EventDate "2019.02.05"]
[EventType "team-tourn"]
[EventCountry "KAZ"]
[SourceTitle "playchess.com"]
[Source "ChessBase"]
[SourceQuality "1"]
[WhiteTeam "China"]
[BlackTeam "Russia"]
[WhiteTeamCountry "CHN"]
[BlackTeamCountry "RUS"]
[TimeControl "40/5400+30:1800+30"]

1. d4 {[%emt 0:00:00]} Nf6 {[%emt 0:00:00]} 2. c4 {[%emt 0:00:02]} e6 {[%emt 0:00:00]} 3. g3 {[%emt 0:00:15]} Bb4+ {[%emt 0:00:18]} 4. Bd2 {[%emt 0:00:25]} c5 {[%emt 0:00:35]} 5. Bxb4 {[%emt 0:03:11]} cxb4 {[%emt 0:00:18]} 6. Bg2 {[%emt 0:00:07]} O-O {[%emt 0:00:23]} 7. e4 {[%emt 0:05:38]} d6 {[%emt 0:02:15]} 8. Ne2 {[%emt 0:00:35]} e5 {[%emt 0:05:37]} 9. O-O {[%emt 0:03:32]} Bg4 {[%emt 0:01:18]} 10. f3 {[%emt 0:12:36]} Be6 {[%emt 0:00:45]} 11. Qd3 {[%emt 0:01:58]} Qb6 {[%emt 0:07:30]} 12. Kh1 {[%emt 0:02:52]} a5 {[%emt 0:06:49]} 13. Nd2 {[%emt 0:03:18]} Na6 {[%emt 0:14:28]} 14. Rfd1 {[%emt 0:01:17]} Rac8 {[%emt 0:05:40]} 15. Rac1 {[%emt 0:00:11]} Rfd8 {[%emt 0:03:16]} 16. Nf1 {[%emt 0:05:56]} h6 {[%emt 0:11:04]} 17. Ne3 {[%emt 0:01:28]} Bd7 {[%emt 0:01:42]} 18. Rd2 {[%emt 0:05:17]} a4 {[%emt 0:01:46]} 19. Rcd1 {[%emt 0:02:39]} Qa5 {[%emt 0:04:04]} 20. b3 {[%emt 0:09:11]} b5 {[%emt 0:03:02]} 21. g4 {[%emt 0:15:20]} Nc7 {[%emt 0:07:24]} 22. h4 {[%emt 0:03:03]} Qa7 {[%emt 0:00:47]} 23. Ng3 {[%emt 0:09:14]} bxc4 {[%emt 0:01:51]} 24. Nxc4 {[%emt 0:02:07]} Bb5 {[%emt 0:03:21]} 25. g5 {[%emt 0:05:18]} hxg5 {[%emt 0:00:44]} 26. hxg5 {[%emt 0:00:03]} Nh7 {[%emt 0:00:12]} 27. g6 {[%emt 0:00:19]} fxg6 {[%emt 0:00:44]} 28. Bh3 {[%emt 0:03:15]} Rb8 {[%emt 0:02:47]} 29. dxe5 {[%emt 0:01:32]} dxe5 {[%emt 0:01:45]} 30. Qe3 {[%emt 0:00:06]} Qa8 {[%emt 0:01:38]} 31. Nxe5 {[%emt 0:02:46]} Nf8 {[%emt 0:00:27]} 32. Qc5 {[%emt 0:01:07]} Rxd2 {[%emt 0:02:24]} 33. Rxd2 {[%emt 0:00:04]} Ne8 {[%emt 0:08:06]} 34. Qe7 {[%emt 0:01:21]} Rb6 {[%emt 0:02:45]} 35. Qf7+ {[%emt 0:00:06]} Kh7 {[%emt 0:00:31]} 36. Rh2 {[%emt 0:00:49]} Nf6 {[%emt 0:00:56]} 37. Bf5+ {[%emt 0:00:10]} 1-0

[Event "World Team-ch Women 2019"]
[Site "Astana"]
[Date "2019.03.09"]
[Round "5.5"]
[White "Muzychuk, Mariya"]
[Black "Abdumalik, Zhansaya"]
[Result "1/2-1/2"]
[ECO "D85"]
[WhiteElo "2560"]
[BlackElo "2469"]
[Annotator "RC"]
[PlyCount "73"]
[EventDate "2019.02.05"]
[EventType "team-tourn"]
[EventCountry "KAZ"]
[SourceTitle "playchess.com"]
[Source "ChessBase"]
[SourceQuality "1"]
[WhiteTeam "Ukraine"]
[BlackTeam "Kazakhstan"]
[WhiteTeamCountry "UKR"]
[BlackTeamCountry "KAZ"]
[TimeControl "40/5400+30:1800+30"]

1. d4 {[%emt 0:00:00]} Nf6 {[%emt 0:00:00]} 2. c4 {[%emt 0:00:00]} g6 {[%emt 0:00:18]} 3. Nc3 {[%emt 0:00:13]} d5 {[%emt 0:00:08]} 4. cxd5 {[%emt 0:00:29]} Nxd5 {[%emt 0:00:21]} 5. e4 {[%emt 0:00:10]} Nxc3 {[%emt 0:00:10]} 6. bxc3 {[%emt 0:00:04]} Bg7 {[%emt 0:01:08]} 7. Qa4+ {[%emt 0:02:11]} Nd7 {[%emt 0:04:43]} 8. Nf3 {[%emt 0:00:16]} O-O {[%emt 0:01:17]} 9. Be2 {[%emt 0:00:24]} e5 {[%emt 0:07:14]} 10. O-O {[%emt 0:04:21]} Nb6 {[%emt 0:02:19]} 11. Qc2 {[%emt 0:09:13]} exd4 {[%emt 0:04:58]} 12. cxd4 {[%emt 0:00:04]} Bg4 {[%emt 0:03:07]} 13. Bb2 {[%emt 0:26:06]} Bxf3 {[%emt 0:13:38]} 14. Bxf3 {[%emt 0:00:09]} Bxd4 {[%emt 0:00:24]} 15. Rfd1 {[%emt 0:03:21]} c5 {[%emt 0:00:11]} 16. Bxd4 {[%emt 0:00:14]} cxd4 {[%emt 0:00:15]} 17. Qb2 {[%emt 0:00:50]} Qf6 {[%emt 0:05:54]} 18. Qxd4 {[%emt 0:00:40]} Qxd4 {[%emt 0:00:45]} 19. Rxd4 {[%emt 0:00:04]} Rfd8 {[%emt 0:00:26]} 20. Rxd8+ {[%emt 0:09:02]} Rxd8 {[%emt 0:00:05]} 21. e5 {[%emt 0:01:47]} Re8 {[%emt 0:02:01]} 22. Bxb7 {[%emt 0:00:40]} Rxe5 {[%emt 0:00:06]} 23. g3 {[%emt 0:00:32]} Ra5 {[%emt 0:01:42]} 24. Bf3 {[%emt 0:04:47]} Ra3 {[%emt 0:05:57]} 25. Bd1 {[%emt 0:00:18]} Nd5 {[%emt 0:02:12]} 26. Bb3 {[%emt 0:00:41]} Nb4 {[%emt 0:01:00]} 27. Bc4 {[%emt 0:01:20]} a5 {[%emt 0:03:21]} 28. Re1 {[%emt 0:04:52]} Rc3 {[%emt 0:00:46]} 29. Re4 {[%emt 0:01:02]} Kg7 {[%emt 0:06:01]} 30. Bb3 {[%emt 0:00:35]} Nc6 {[%emt 0:07:50]} 31. Kg2 {[%emt 0:01:10]} g5 {[%emt 0:01:42]} 32. h4 {[%emt 0:05:58]} h6 {[%emt 0:04:29]} 33. hxg5 {[%emt 0:02:14]} hxg5 {[%emt 0:00:06]} 34. Re8 {[%emt 0:01:03]} Nd4 {[%emt 0:06:35]} 35. Re5 {[%emt 0:02:22]} Nxb3 {[%emt 0:01:20]} 36. axb3 {[%emt 0:00:08]} Kg6 {[%emt 0:00:41]} 37. Rxa5 {[%emt 0:00:08]} 1/2-1/2

[Event "World Team-ch Women 2019"]
[Site "Astana"]
[Date "2019.03.09"]
[Round "5.10"]
[White "Arabidze, Meri"]
[Black "Gara, Anita"]
[Result "1-0"]
[ECO "D96"]
[WhiteElo "2392"]
[BlackElo "2384"]
[Annotator "NA"]
[PlyCount "117"]
[EventDate "2019.02.05"]
[EventType "team-tourn"]
[EventCountry "KAZ"]
[SourceTitle "playchess.com"]
[Source "ChessBase"]
[SourceQuality "1"]
[WhiteTeam "Georgia"]
[BlackTeam "Hungary"]
[WhiteTeamCountry "GEO"]
[BlackTeamCountry "HUN"]
[TimeControl "40/5400+30:1800+30"]

1. d4 {[%emt 0:00:00]} Nf6 {[%emt 0:00:03]} 2. c4 {[%emt 0:00:00]} g6 {[%emt 0:00:05]} 3. Nc3 {[%emt 0:00:00]} d5 {[%emt 0:00:04]} 4. Nf3 {[%emt 0:00:14]} Bg7 {[%emt 0:00:05]} 5. Qb3 {[%emt 0:00:10]} dxc4 {[%emt 0:01:57]} 6. Qxc4 {[%emt 0:00:05]} Be6 {[%emt 0:00:34]} 7. Qb5+ {[%emt 0:03:24] D96: Grünfeld: Russian System (5 Qb3): sidelines} Bd7 {[%emt 0:00:06]} 8. Qb3 {[%emt 0:04:58]} O-O {[%emt 0:06:14]} 9. e4 {[%emt 0:02:12]} c5 {[%emt 0:03:11]} 10. d5 {[%emt 0:05:28]} e6 {[%emt 0:05:19]} 11. dxe6 {[%emt 0:19:47]} Bxe6 {[%emt 0:02:01]} 12. Bc4 {[%emt 0:00:11]} Bxc4 $146 {[%emt 0:07:57]} ({Predecessor:} 12... Re8 13. O-O Nc6 14. Bxe6 Rxe6 15. Bg5 {½-½ (47) Oms Pallisse,J (2506)-Nielsen,P (2662) Barcelona 2012}) 13. Qxc4 {[%emt 0:00:12]} Qb6 {[%emt 0:03:02]} 14. O-O {[%emt 0:11:53]} Qb4 {[%emt 0:04:01]} 15. Qe2 {[%emt 0:00:37]} Nc6 {[%emt 0:02:44]} 16. Bg5 {[%emt 0:05:30]} Rae8 {[%emt 0:04:49]} 17. Rfe1 {[%emt 0:05:10]} h6 {[%emt 0:01:42] [#]} 18. Bxf6 $1 {[%emt 0:03:45]} Bxf6 {[%emt 0:00:04]} 19. Nd5 {[%emt 0:00:20]} Qxb2 {[%emt 0:00:49]} 20. Rab1 {[%emt 0:00:18]} Qxe2 {[%emt 0:09:47]} 21. Nxf6+ {[%emt 0:00:10]} Kh8 {[%emt 0:00:03]} 22. Rxe2 {[%emt 0:00:05]} Re7 {[%emt 0:00:01]} 23. Rd2 {[%emt 0:06:23]} b6 {[%emt 0:03:34]} 24. Rd6 $18 {[%emt 0:02:55]} Rc8 {[%emt 0:03:50]} 25. Rc1 {[%emt 0:05:07]} Kg7 {[%emt 0:00:59]} 26. Nd2 {[%emt 0:09:37]} Re6 {[%emt 0:03:54]} 27. Rxe6 {[%emt 0:00:57]} fxe6 {[%emt 0:00:01]} 28. Ng4 {[%emt 0:00:11]} Rd8 {[%emt 0:01:31]} 29. Nc4 {[%emt 0:01:43]} b5 {[%emt 0:06:24]} 30. Nce5 {[%emt 0:04:13]} Nb4 {[%emt 0:00:03]} 31. f4 {[%emt 0:03:53]} c4 {[%emt 0:02:07]} 32. a3 {[%emt 0:02:19]} Na2 {[%emt 0:01:35]} 33. Rc2 {[%emt 0:00:10]} Rd1+ {[%emt 0:00:10]} 34. Kf2 {[%emt 0:00:01]} Nc1 {[%emt 0:01:16]} 35. Ne3 {[%emt 0:00:58]} Nd3+ {[%emt 0:01:21]} 36. Ke2 {[%emt 0:00:46]} Ra1 {[%emt 0:01:49]} 37. Nxd3 {[%emt 0:00:43]} cxd3+ {[%emt 0:00:03]} 38. Kxd3 {[%emt 0:00:04]} Rxa3+ {[%emt 0:00:03]} 39. Rc3 {[%emt 0:03:47]} Ra1 {[%emt 0:00:48]} 40. Rc7+ {[%emt 0:00:00]} Kf8 {[%emt 0:00:00]} 41. Rb7 {[%emt 0:02:08]} a6 {[%emt 0:00:36]} 42. Nc2 {[%emt 0:06:16]} Rd1+ {[%emt 0:05:28]} 43. Ke3 {[%emt 0:03:08]} Rg1 {[%emt 0:03:00]} 44. g3 {[%emt 0:01:06]} g5 {[%emt 0:02:03]} 45. Nd4 {[%emt 0:01:14]} Re1+ {[%emt 0:02:13]} 46. Kd3 {[%emt 0:01:05]} Rd1+ {[%emt 0:00:36]} 47. Kc3 {[%emt 0:00:20]} b4+ {[%emt 0:03:56]} 48. Rxb4 {[%emt 0:00:18]} Rc1+ {[%emt 0:03:24]} 49. Kd2 {[%emt 0:00:16]} Rh1 {[%emt 0:00:10]} 50. Nxe6+ {[%emt 0:02:43]} Ke7 {[%emt 0:00:38]} 51. Nd4 {[%emt 0:00:32]} Rxh2+ {[%emt 0:00:18]} 52. Ke3 {[%emt 0:00:07]} g4 {[%emt 0:01:35]} 53. Rb6 {[%emt 0:01:15]} a5 {[%emt 0:01:19]} 54. Ra6 {[%emt 0:00:29]} Kf7 {[%emt 0:03:16]} 55. Rxa5 {[%emt 0:01:36]} h5 {[%emt 0:00:24]} 56. Ra7+ {[%emt 0:01:01]} Kg6 {[%emt 0:00:12]} 57. Ra6+ {[%emt 0:00:09]} Kf7 {[%emt 0:00:05]} 58. Nf5 {[%emt 0:00:20]} Rb2 {[%emt 0:00:52]} 59. e5 {[%emt 0:00:22]} 1-0

[Event "World Team-ch Women 2019"]
[Site "Astana"]
[Date "2019.03.09"]
[Round "5.12"]
[White "Melia, Salome"]
[Black "Terbe, Julianna"]
[Result "1-0"]
[ECO "B31"]
[WhiteElo "2385"]
[BlackElo "2306"]
[Annotator "NA"]
[PlyCount "93"]
[EventDate "2019.02.05"]
[EventType "team-tourn"]
[EventCountry "KAZ"]
[SourceTitle "playchess.com"]
[Source "ChessBase"]
[SourceQuality "1"]
[WhiteTeam "Georgia"]
[BlackTeam "Hungary"]
[WhiteTeamCountry "GEO"]
[BlackTeamCountry "HUN"]
[TimeControl "40/5400+30:1800+30"]

1. e4 {[%emt 0:00:00]} c5 {[%emt 0:00:00]} 2. Nf3 {[%emt 0:00:00]} Nc6 {[%emt 0:00:00]} 3. Bb5 {[%emt 0:00:00]} g6 {[%emt 0:00:00]} 4. Bxc6 {[%emt 0:00:06]} bxc6 {[%emt 0:00:08]} 5. O-O {[%emt 0:00:06]} Bg7 {[%emt 0:00:10]} 6. Re1 {[%emt 0:00:08]} Nh6 {[%emt 0:00:22]} 7. c3 {[%emt 0:00:20]} O-O {[%emt 0:00:15]} 8. h3 {[%emt 0:00:32]} f5 {[%emt 0:00:12]} 9. e5 {[%emt 0:01:13]} Nf7 {[%emt 0:00:31]} 10. d3 {[%emt 0:00:23]} Ba6 {[%emt 0:01:11]} 11. c4 {[%emt 0:02:09]} d6 {[%emt 0:01:57]} 12. e6 {[%emt 0:00:21]} Ne5 {[%emt 0:01:31]} 13. Nxe5 {[%emt 0:00:06]} dxe5 {[%emt 0:02:34]} 14. Nc3 {[%emt 0:02:50]} Qd6 {[%emt 0:04:36]} 15. b3 {[%emt 0:12:49]} Rfd8 {[%emt 0:13:28]} 16. Na4 {[%emt 0:08:06]} Bc8 $16 {[%emt 0:07:36]} (16... e4 $14 17. Be3 exd3) 17. Bb2 {[%emt 0:06:47]} Bxe6 {[%emt 0:07:16]} 18. Qe2 {[%emt 0:02:43]} e4 {[%emt 0:09:23]} 19. Bxg7 {[%emt 0:05:29]} Kxg7 {[%emt 0:00:06]} 20. dxe4 {[%emt 0:00:21]} f4 {[%emt 0:06:45]} 21. e5 {[%emt 0:01:32]} Qd2 {[%emt 0:01:30]} 22. Qf3 {[%emt 0:08:46]} Rac8 {[%emt 0:06:08]} 23. Red1 {[%emt 0:07:23]} Qc2 {[%emt 0:04:29]} 24. Nxc5 {[%emt 0:03:31]} Bf5 {[%emt 0:04:11]} 25. Rxd8 {[%emt 0:04:24]} Rxd8 {[%emt 0:00:01]} 26. Qxf4 {[%emt 0:00:24]} Qb2 {[%emt 0:07:45]} 27. Re1 {[%emt 0:01:06]} Rf8 {[%emt 0:01:07]} 28. Qe3 {[%emt 0:04:35]} Qxa2 {[%emt 0:00:44]} 29. Qd4 {[%emt 0:01:35]} Qa5 {[%emt 0:05:42]} 30. Rd1 {[%emt 0:07:04]} Kg8 {[%emt 0:02:49]} 31. g4 {[%emt 0:04:15]} Bc2 {[%emt 0:03:55]} 32. Ra1 {[%emt 0:04:35]} Qb4 {[%emt 0:02:07]} 33. Kg2 {[%emt 0:08:45]} a5 {[%emt 0:02:21]} 34. Qe3 {[%emt 0:01:51]} Rb8 {[%emt 0:02:52]} 35. Na6 {[%emt 0:01:04]} Qxb3 {[%emt 0:00:57]} 36. Nxb8 {[%emt 0:00:07]} Qxb8 {[%emt 0:00:04]} 37. Rxa5 {[%emt 0:00:21]} Bb3 {[%emt 0:01:44]} 38. Ra7 {[%emt 0:02:31]} Bxc4 {[%emt 0:00:32]} 39. Rxe7 {[%emt 0:00:20]} Bd5+ {[%emt 0:00:04]} 40. Kg3 {[%emt 0:00:00]} Qb1 {[%emt 0:00:00]} 41. f3 {[%emt 0:04:12]} h6 {[%emt 0:04:00]} 42. h4 {[%emt 0:01:27]} Qd1 {[%emt 0:03:43]} 43. Rd7 {[%emt 0:04:51]} Qb1 {[%emt 0:03:13]} 44. Rd8+ {[%emt 0:07:25]} Kg7 {[%emt 0:00:24]} 45. e6 {[%emt 0:00:35]} Bxe6 {[%emt 0:01:18]} 46. Qe5+ {[%emt 0:02:51]} Kf7 {[%emt 0:00:05]} 47. Qc7+ {[%emt 0:00:26]} 1-0

[Event "World Team-ch Women 2019"]
[Site "Astana"]
[Date "2019.03.09"]
[Round "5.13"]
[White "Soumya, Swaminathan"]
[Black "Wafa, Shahenda"]
[Result "1-0"]
[ECO "B67"]
[WhiteElo "2401"]
[BlackElo "2175"]
[Annotator "NA"]
[PlyCount "69"]
[EventDate "2019.02.05"]
[EventType "team-tourn"]
[EventCountry "KAZ"]
[SourceTitle "playchess.com"]
[Source "ChessBase"]
[SourceQuality "1"]
[WhiteTeam "India"]
[BlackTeam "Egypt"]
[WhiteTeamCountry "IND"]
[BlackTeamCountry "EGY"]
[TimeControl "40/5400+30:1800+30"]

1. e4 {[%emt 0:00:00]} c5 {[%emt 0:00:00]} 2. Nf3 {[%emt 0:00:05]} Nc6 {[%emt 0:00:00]} 3. d4 {[%emt 0:00:04]} cxd4 {[%emt 0:00:00]} 4. Nxd4 {[%emt 0:00:02]} Nf6 {[%emt 0:00:14]} 5. Nc3 {[%emt 0:00:06]} d6 {[%emt 0:00:15]} 6. Bg5 {[%emt 0:00:12]} e6 {[%emt 0:00:09]} 7. Qd2 {[%emt 0:00:03]} a6 {[%emt 0:00:55]} 8. O-O-O {[%emt 0:00:08]} Bd7 {[%emt 0:00:09]} 9. f3 {[%emt 0:00:16]} b5 {[%emt 0:00:39]} 10. Nxc6 {[%emt 0:00:08]} Bxc6 {[%emt 0:00:07]} 11. Kb1 {[%emt 0:00:09] B67: Sicilian: Richter-Rauzer: 7...a6 8 0-0-0 Bd7, lines without 9 f4 Be7} Rc8 {[%emt 0:06:03]} 12. h4 {[%emt 0:11:31]} h6 {[%emt 0:03:57]} 13. Be3 {[%emt 0:00:35]} b4 $146 {[%emt 0:04:37]} ({Predecessor:} 13... h5 14. Bf4 d5 15. e5 Nd7 16. Ne2 Qc7 17. Nd4 Bb7 18. Bd3 {1-0 (45) Sjugirov,S (2664)-Tissir,M (2351) Abu Dhabi 2015}) 14. Ne2 {[%emt 0:00:04]} ({Inferior is} 14. Bxa6 bxc3 15. Qxc3 {[#]} Bb7 $1 $17 {[%mdl 512]}) 14... d5 {[%emt 0:00:40]} 15. Nd4 {[%emt 0:03:07]} Bb7 {[%emt 0:02:40]} 16. e5 {[%emt 0:00:08]} Nd7 {[%emt 0:00:24]} 17. f4 {[%emt 0:07:17]} h5 {[%emt 0:08:23] [#]} 18. Bd3 $1 {[%emt 0:16:59]} Qc7 {[%emt 0:26:58]} 19. f5 {[%emt 0:00:41]} exf5 {[%emt 0:07:14]} 20. e6 {[%emt 0:03:29]} Ne5 {[%emt 0:10:41]} (20... Nc5 $142 21. Bxf5 Ne4) 21. Bxf5 {[%emt 0:00:34]} f6 {[%emt 0:02:04] [#]} 22. e7 $1 {[%emt 0:05:55]} Qxe7 {[%emt 0:00:39]} 23. Bxc8 {[%emt 0:00:29]} Bxc8 {[%emt 0:01:15]} 24. Bf4 {[%emt 0:00:19]} Nc4 {[%emt 0:02:00]} 25. Qd3 {[%emt 0:03:29]} Kf7 {[%emt 0:00:21]} 26. Nc6 $18 {[%emt 0:06:05]} Qd7 {[%emt 0:04:17]} 27. Qxd5+ {[%emt 0:00:07]} Qxd5 {[%emt 0:00:03]} 28. Rxd5 {[%emt 0:00:06]} g6 {[%emt 0:05:11]} 29. Re1 {[%emt 0:01:02]} Rh7 {[%emt 0:05:19]} 30. Rd8 {[%emt 0:07:04]} Bf5 {[%emt 0:04:28]} 31. Rb8 {[%emt 0:04:39]} g5 {[%emt 0:02:16]} 32. hxg5 {[%emt 0:01:18]} fxg5 {[%emt 0:00:01]} 33. Bxg5 {[%emt 0:00:34]} Bg7 {[%emt 0:00:15]} 34. Rxb4 {[%emt 0:01:32]} Nd6 {[%emt 0:00:50]} 35. Bf4 {[%emt 0:00:44]} 1-0